lending/lending_fUSD_20241211
["ID","MTS","AMOUNT","RATE_DAILY","PERIOD"]
[344934052,1733890268131,-500.0,0.00011098,2]
[344934053,1733890268142,-500.0,0.00011098,2]
[344934054,1733890268151,-500.0,0.00011098,2]
[344934055,1733890268163,-500.0,0.00011098,2]
[344934056,1733890268173,-500.0,0.00011098,2]
[344934057,1733890268182,-500.0,0.00011098,2]
[344934058,1733890268191,-500.0,0.00011098,2]
[344934059,1733890268201,-500.0,0.00011098,2]
[344934060,1733890268212,-275.39039095,0.00011098,2]
[344934061,1733890268222,-500.0,0.00011098,2]
[344934062,1733890268232,-506.12145655,0.00011098,2]
[344934063,1733890268242,-234.2,0.00011098,2]
[344934064,1733890268252,-564.94,0.00011098,2]
[344934065,1733890268263,-564.94,0.00011098,2]
[344934066,1733890268279,-2052.48,0.00011098,2]
[344934067,1733890268289,-2052.48,0.00011098,2]
[344934068,1733890268299,-2052.48,0.00011098,2]
[344934069,1733890268310,-2052.48,0.00011098,2]
[344934070,1733890268320,-2052.48,0.00011098,2]
[344934071,1733890268330,-2052.48,0.00011098,2]
[344934072,1733890268342,-564.94,0.00011098,2]
[344934073,1733890268352,-2052.48,0.00011098,2]
[344934074,1733890268363,-564.94,0.00011098,2]
[344934075,1733890268373,-2052.48,0.00011098,2]
[344934076,1733890268383,-564.94,0.00011098,2]
[344934077,1733890268393,-2052.48,0.00011098,2]
[344934078,1733890268403,-564.94,0.00011098,2]
[344934079,1733890268412,-2052.48,0.00011098,2]
[344934080,1733890268421,-564.94,0.00011098,2]
[344934081,1733890268430,-2052.48,0.00011098,2]
[344934082,1733890268439,-564.94,0.00011098,2]
[344934083,1733890268448,-2052.48,0.00011098,2]
[344934084,1733890268458,-564.94,0.00011098,2]
[344934085,1733890268468,-2052.48,0.00011098,2]
[344934086,1733890268479,-564.94,0.00011098,2]
[344934087,1733890268489,-2052.48,0.00011098,2]
[344934088,1733890268499,-564.94,0.00011098,2]
[344934089,1733890268510,-2052.63915507,0.00011098,2]
[344934090,1733890268520,-564.94,0.00011098,2]
[344934091,1733890268529,-564.94,0.00011098,2]
[344934092,1733890268539,-564.94,0.00011098,2]
[344934093,1733890268549,-565.10611976,0.00011098,2]
[344934094,1733890268558,-2097.98,0.00011098,2]
[344934095,1733890268568,-2097.98,0.00011098,2]
[344934096,1733890268578,-2097.98,0.00011098,2]
[344934097,1733890268588,-2097.98,0.00011098,2]
[344934098,1733890268598,-2097.98,0.00011098,2]
[344934099,1733890268607,-2097.98,0.00011098,2]
[344934100,1733890268618,-2097.98,0.00011098,2]
[344934101,1733890268628,-2097.98,0.00011098,2]
[344934102,1733890268637,-2097.98,0.00011098,2]
[344934103,1733890268646,-2097.98,0.00011098,2]
[344934104,1733890268656,-2097.98,0.00011098,2]
[344934105,1733890268665,-2097.98,0.00011098,2]
[344934106,1733890268674,-2097.98,0.00011098,2]
[344934107,1733890268684,-2097.98,0.00011098,2]
[344934108,1733890268694,-2098.1,0.00011098,2]
[344934109,1733890268703,-500.0,0.00011098,2]
[344934110,1733890268716,-500.0,0.00011098,2]
[344934111,1733890268726,-247.636793,0.00011098,2]
[344934112,1733890268735,-247.636793,0.00011098,2]
[344934113,1733890268745,-589.73,0.00011098,2]
[344934114,1733890268755,-589.73,0.00011098,2]
[344934115,1733890268766,-589.73,0.00011098,2]
[344934116,1733890268776,-828.48,0.00011098,2]
[344934117,1733890268786,-828.48,0.00011098,2]
[344934118,1733890268795,-828.48,0.00011098,2]
[344934119,1733890268805,-500.59,0.00011098,2]
[344934120,1733890268815,-1955.85,0.00011098,2]
[344934121,1733890268824,-1955.85,0.00011098,2]
[344934122,1733890268834,-1955.85,0.00011098,2]
[344934123,1733890268844,-1955.85,0.00011098,2]
[344934124,1733890268854,-1955.85,0.00011098,2]
[344934125,1733890268864,-1955.85,0.00011098,2]
[344934126,1733890268874,-1955.85,0.00011098,2]
[344934127,1733890268884,-1955.85,0.00011098,2]
[344934128,1733890268893,-1955.85,0.00011098,2]
[344934129,1733890268903,-1955.85,0.00011098,2]
[344934130,1733890268913,-1955.85,0.00011098,2]
[344934131,1733890268923,-512.91,0.00011098,2]
[344934132,1733890268933,-1955.85,0.00011098,2]
[344934133,1733890268943,-512.91,0.00011098,2]
[344934134,1733890268952,-1955.85,0.00011098,2]
[344934135,1733890268964,-512.91,0.00011098,2]
[344934136,1733890268974,-1955.85,0.00011098,2]
[344934137,1733890268985,-512.91,0.00011098,2]
[344934138,1733890268994,-1955.97,0.00011098,2]
[344934139,1733890269004,-1249.05,0.00011098,2]
[344934140,1733890269013,-512.91,0.00011098,2]
[344934141,1733890269023,-534.73,0.00011098,2]
[344934142,1733890269032,-1249.05,0.00011098,2]
[344934143,1733890269041,-512.91,0.00011098,2]
[344934144,1733890269051,-534.73,0.00011098,2]
[344934145,1733890269060,-512.91,0.00011098,2]
[344934146,1733890269070,-534.73,0.00011098,2]
[344934147,1733890269079,-512.91,0.00011098,2]
[344934148,1733890269088,-512.91,0.00011098,2]
[344934149,1733890269098,-512.91,0.00011098,2]
[344934150,1733890269107,-512.91,0.00011098,2]
[344934151,1733890269117,-512.91,0.00011098,2]
[344934152,1733890269127,-512.91,0.00011098,2]
[344934153,1733890269136,-512.91,0.00011098,2]
[344934154,1733890269146,-512.95,0.00011098,2]
[344934155,1733890269156,-613.63,0.00011098,2]
[344934156,1733890269165,-613.63,0.00011098,2]
[344934157,1733890269175,-613.63,0.00011098,2]
[344934158,1733890269185,-613.63,0.00011098,2]
[344934159,1733890269194,-613.63,0.00011098,2]
[344934160,1733890269204,-613.63,0.00011098,2]
[344934161,1733890269215,-613.63,0.00011098,2]
[344934162,1733890269224,-613.63,0.00011098,2]
[344934163,1733890269233,-613.63,0.00011098,2]
[344934164,1733890269242,-613.63,0.00011098,2]
[344934165,1733890269251,-613.63,0.00011098,2]
[344934166,1733890269261,-613.63,0.00011098,2]
[344934167,1733890269274,-613.63,0.00011098,2]
[344934168,1733890269284,-613.63,0.00011098,2]
[344934169,1733890269294,-613.63347646,0.00011098,2]
[344934170,1733890269303,-500.0,0.00011098,2]
[344934171,1733890269314,-9566.21,0.00011098,2]
[344934172,1733890269323,-9566.21,0.00011098,2]
[344934173,1733890269333,-517.15967867,0.00011098,2]
[344934174,1733890269343,-9566.21,0.00011098,2]
[344934175,1733890269356,-9566.21,0.00011098,2]
[344934176,1733890269368,-9566.21,0.00011098,2]
[344934177,1733890269378,-9566.21,0.00011098,2]
[344934178,1733890269388,-9566.21,0.00011098,2]
[344934179,1733890269397,-9566.21,0.00011098,2]
[344934180,1733890269407,-9566.21,0.00011098,2]
[344934181,1733890269416,-9566.21,0.00011098,2]
[344934182,1733890269426,-9566.21,0.00011098,2]
[344934183,1733890269436,-9566.21,0.00011098,2]
[344934184,1733890269447,-9566.21,0.00011098,2]
[344934185,1733890269457,-9566.21,0.00011098,2]
[344934186,1733890269467,-9566.39345592,0.00011098,2]
[344934187,1733890269477,-1163.3,0.00011098,2]
[344934188,1733890269486,-1163.3,0.00011098,2]
[344934189,1733890269496,-1163.3,0.00011098,2]
[344934190,1733890269505,-500.0,0.00011098,2]
[344934191,1733890269515,-1163.3,0.00011098,2]
[344934192,1733890269524,-520.73428387,0.00011098,2]
[344934193,1733890269534,-1163.3,0.00011098,2]
[344934194,1733890269543,-1163.3,0.00011098,2]
[344934195,1733890269553,-1163.3,0.00011098,2]
[344934196,1733890269692,-1163.3,0.00011098,2]
[344934197,1733890269702,-1163.3,0.00011098,2]
[344934198,1733890269713,-1163.3,0.00011098,2]
[344934199,1733890269722,-1163.3,0.00011098,2]
[344934200,1733890269731,-1163.3,0.00011098,2]
[344934201,1733890269741,-1163.3,0.00011098,2]
[344934202,1733890269750,-1163.3,0.00011098,2]
[344934203,1733890269760,-1163.32,0.00011098,2]
[344934204,1733890269769,-500.0,0.00011098,2]
[344934205,1733890269779,-500.0,0.00011098,2]
[344934206,1733890269787,-500.0,0.00011098,2]
[344934207,1733890269796,-500.0,0.00011098,2]
[344934208,1733890269805,-500.0,0.00011098,2]
[344934209,1733890269815,-500.0,0.00011098,2]
[344934210,1733890269825,-500.0,0.00011098,2]
[344934211,1733890269834,-500.0,0.00011098,2]
[344934212,1733890269843,-500.0,0.00011098,2]
[344934213,1733890269853,-460.03530504,0.00011098,2]
[344934214,1733890269862,-2220.99,0.00011098,2]
[344934215,1733890269871,-2220.99,0.00011098,2]
[344934216,1733890269880,-2220.99,0.00011098,2]
[344934217,1733890269889,-2220.99,0.00011098,2]
[344934218,1733890269899,-1815.2,0.00011098,2]
[344934219,1733890269908,-1815.2,0.00011098,2]
[344934220,1733890269917,-1815.2,0.00011098,2]
[344934221,1733890269927,-783.74,0.00011098,2]
[344934222,1733890269937,-783.74,0.00011098,2]
[344934223,1733890269947,-783.74,0.00011098,2]
[344934224,1733890269956,-500.0,0.00011098,2]
[344934225,1733890269967,-783.74,0.00011098,2]
[344934226,1733890269977,-500.0,0.00011098,2]
[344934227,1733890269986,-500.0,0.00011098,2]
[344934228,1733890269996,-783.74,0.00011098,2]
[344934229,1733890270005,-500.0,0.00011098,2]
[344934230,1733890270014,-500.0,0.00011098,2]
[344934231,1733890270023,-783.74,0.00011098,2]
[344934232,1733890270032,-500.0,0.00011098,2]
[344934233,1733890270041,-783.74,0.00011098,2]
[344934234,1733890270051,-500.0,0.00011098,2]
[344934235,1733890270060,-783.74,0.00011098,2]
[344934236,1733890270069,-500.0,0.00011098,2]
[344934237,1733890270078,-783.74,0.00011098,2]
[344934238,1733890270087,-500.0,0.00011098,2]
[344934239,1733890270096,-500.0,0.00011098,2]
[344934240,1733890270105,-783.74,0.00011098,2]
[344934241,1733890270115,-500.0,0.00011098,2]
[344934242,1733890270125,-783.74,0.00011098,2]
[344934243,1733890270134,-783.74,0.00011098,2]
[344934244,1733890270144,-272.50212743,0.00011098,2]
[344934245,1733890270153,-783.74,0.00011098,2]
[344934246,1733890270162,-783.74,0.00011098,2]
[344934247,1733890270172,-783.82,0.00011098,2]
[344934248,1733890270181,-1151.2,0.00011098,2]
[344934249,1733890270190,-1151.2,0.00011098,2]
[344934250,1733890270200,-1151.2,0.00011098,2]
[344934251,1733890270211,-1151.2,0.00011098,2]
[344934252,1733890270220,-2721.66,0.00011098,2]
[344934253,1733890270230,-2721.66,0.00011098,2]
[344934254,1733890270240,-649.37,0.00011098,2]
[344934255,1733890270249,-649.37,0.00011098,2]
[344934256,1733890270259,-649.37,0.00011098,2]
[344934257,1733890270271,-649.37,0.00011098,2]
[344934258,1733890270281,-649.37,0.00011098,2]
[344934259,1733890270291,-649.37,0.00011098,2]
[344934260,1733890270300,-649.37,0.00011098,2]
[344934261,1733890270311,-649.37,0.00011098,2]
[344934262,1733890270320,-649.37,0.00011098,2]
[344934263,1733890270330,-649.37,0.00011098,2]
[344934264,1733890270340,-649.37,0.00011098,2]
[344934265,1733890270352,-649.37,0.00011098,2]
[344934266,1733890270361,-649.37,0.00011098,2]
[344934267,1733890270371,-649.37,0.00011098,2]
[344934268,1733890270380,-649.51,0.00011098,2]
[344934269,1733890270390,-3928.62,0.00011098,2]
[344934270,1733890270399,-3928.62,0.00011098,2]
[344934271,1733890270409,-3928.62,0.00011098,2]
[344934272,1733890270418,-3928.62,0.00011098,2]
[344934273,1733890270427,-500.0,0.00011098,2]
[344934274,1733890270437,-500.0,0.00011098,2]
[344934275,1733890270446,-553.96,0.00011098,2]
[344934276,1733890270455,-500.0,0.00011098,2]
[344934277,1733890270467,-2896.18,0.00011098,2]
[344934278,1733890270476,-500.0,0.00011098,2]
[344934279,1733890270486,-2896.18,0.00011098,2]
[344934280,1733890270496,-500.0,0.00011098,2]
[344934281,1733890270506,-2896.18,0.00011098,2]
[344934282,1733890270515,-500.0,0.00011098,2]
[344934283,1733890270524,-649.03,0.00011098,2]
[344934284,1733890270534,-649.03,0.00011098,2]
[344934285,1733890270543,-2387.14,0.00011098,2]
[344934286,1733890270552,-2387.14,0.00011098,2]
[344934287,1733890270562,-2387.14,0.00011098,2]
[344934288,1733890270572,-2387.14,0.00011098,2]
[344934289,1733890270581,-1583.61,0.00011098,2]
[344934290,1733890270592,-1583.61,0.00011098,2]
[344934291,1733890270602,-1583.61,0.00011098,2]
[344934292,1733890270612,-1583.61,0.00011098,2]
[344934293,1733890270621,-1583.61,0.00011098,2]
[344934294,1733890270631,-1583.61,0.00011098,2]
[344934295,1733890270640,-1583.61,0.00011098,2]
[344934296,1733890270650,-1583.61,0.00011098,2]
[344934297,1733890270659,-1583.61,0.00011098,2]
[344934298,1733890270668,-1583.61,0.00011098,2]
[344934299,1733890270678,-1583.61,0.00011098,2]
[344934300,1733890270687,-1583.61,0.00011098,2]
[344934301,1733890270696,-1583.61,0.00011098,2]
[344934302,1733890270706,-500.0,0.00011098,2]
[344934303,1733890270717,-1583.61,0.00011098,2]
[344934304,1733890270726,-500.0,0.00011098,2]
[344934305,1733890270736,-1583.72196352,0.00011098,2]
[344934306,1733890270745,-500.0,0.00011098,2]
[344934307,1733890270754,-500.0,0.00011098,2]
[344934308,1733890270764,-979.24,0.00011098,2]
[344934309,1733890270773,-979.24,0.00011098,2]
[344934310,1733890270782,-1263.39,0.00011098,2]
[344934311,1733890270793,-151.0,0.00011098,2]
[344934312,1733890270802,-1263.39,0.00011098,2]
[344934313,1733890270812,-151.0,0.00011098,2]
[344934314,1733890270822,-1263.39,0.00011098,2]
[344934315,1733890270831,-1473.99,0.00011098,2]
[344934316,1733890270840,-1473.99,0.00011098,2]
[344934317,1733890270850,-1473.99,0.00011098,2]
[344934318,1733890270859,-1473.99,0.00011098,2]
[344934319,1733890270869,-1782.13,0.00011098,2]
[344934320,1733890270879,-1473.99,0.00011098,2]
[344934321,1733890270888,-1782.13,0.00011098,2]
[344934322,1733890270898,-1473.99,0.00011098,2]
[344934323,1733890270907,-1782.13,0.00011098,2]
[344934324,1733890270916,-1473.99,0.00011098,2]
[344934325,1733890270926,-1782.13,0.00011098,2]
[344934326,1733890270935,-1473.99,0.00011098,2]
[344934327,1733890270945,-1473.99,0.00011098,2]
[344934328,1733890270954,-1473.99,0.00011098,2]
[344934329,1733890270966,-1473.99,0.00011098,2]
[344934330,1733890270980,-1473.99,0.00011098,2]
[344934331,1733890270989,-151.0,0.00011098,2]
[344934332,1733890270999,-1473.99,0.00011098,2]
[344934333,1733890271008,-1473.99,0.00011098,2]
[344934334,1733890271018,-151.0,0.00011098,2]
[344934335,1733890271028,-1474.0020394,0.00011098,2]
[344934336,1733890271038,-1580.46,0.00011098,2]
[344934337,1733890271048,-1580.46,0.00011098,2]
[344934338,1733890271058,-179.72408832,0.00011098,2]
[344934339,1733890271067,-540.43,0.00011098,2]
[344934340,1733890271077,-500.0,0.00011098,2]
[344934341,1733890271087,-540.43,0.00011098,2]
[344934342,1733890271097,-501.40602581,0.00011098,2]
[344934343,1733890271106,-540.43,0.00011098,2]
[344934344,1733890271116,-644.48,0.00011098,2]
[344934345,1733890271126,-540.43,0.00011098,2]
[344934346,1733890271135,-644.48,0.00011098,2]
[344934347,1733890271144,-540.43,0.00011098,2]
[344934348,1733890271154,-644.48,0.00011098,2]
[344934349,1733890271163,-540.43,0.00011098,2]
[344934350,1733890271173,-644.48,0.00011098,2]
[344934351,1733890271183,-540.43,0.00011098,2]
[344934352,1733890271191,-540.43,0.00011098,2]
[344934353,1733890271201,-540.43,0.00011098,2]
[344934354,1733890271213,-540.43,0.00011098,2]
[344934355,1733890271223,-540.43,0.00011098,2]
[344934356,1733890271232,-540.43,0.00011098,2]
[344934357,1733890271241,-540.43,0.00011098,2]
[344934358,1733890271251,-540.43,0.00011098,2]
[344934359,1733890271261,-540.55672111,0.00011098,2]
[344934360,1733890271275,-5178.09,0.00011098,2]
[344934361,1733890271284,-5178.09,0.00011098,2]
[344934362,1733890271294,-3019.06,0.00011098,2]
[344934363,1733890271304,-3019.06,0.00011098,2]
[344934364,1733890271314,-3019.06,0.00011098,2]
[344934365,1733890271324,-3019.06,0.00011098,2]
[344934366,1733890271334,-3019.06,0.00011098,2]
[344934367,1733890271345,-340.97688943,0.00011098,2]
[344934368,1733890271356,-3019.06,0.00011098,2]
[344934369,1733890271366,-3019.06,0.00011098,2]
[344934370,1733890271375,-3019.06,0.00011098,2]
[344934371,1733890271385,-2964.01,0.00011098,2]
[344934372,1733890271394,-2964.01,0.00011098,2]
[344934373,1733890271404,-2964.01,0.00011098,2]
[344934374,1733890271413,-3019.06,0.00011098,2]
[344934375,1733890271423,-2964.01,0.00011098,2]
[344934376,1733890271432,-3019.06,0.00011098,2]
[344934377,1733890271441,-3019.06,0.00011098,2]
[344934378,1733890271450,-3019.06,0.00011098,2]
[344934379,1733890271461,-3019.06,0.00011098,2]
[344934380,1733890271471,-3019.06,0.00011098,2]
[344934381,1733890271480,-3019.20439307,0.00011098,2]
[344934382,1733890271489,-324.57180096,0.00011098,2]
[344934383,1733890271500,-500.0,0.00011098,2]
[344934384,1733890271510,-500.0,0.00011098,2]
[344934385,1733890271520,-286.33331846,0.00011098,2]
[344934386,1733890271529,-500.0,0.00011098,2]
[344934387,1733890271537,-500.0,0.00011098,2]
[344934388,1733890271546,-500.0,0.00011098,2]
[344934389,1733890271555,-500.0,0.00011098,2]
[344934390,1733890271564,-500.0,0.00011098,2]
[344934391,1733890271574,-500.0,0.00011098,2]
[344934392,1733890271583,-500.0,0.00011098,2]
[344934393,1733890271592,-500.0,0.00011098,2]
[344934394,1733890271602,-500.0,0.00011098,2]
[344934395,1733890271612,-500.0,0.00011098,2]
[344934396,1733890271621,-500.0,0.00011098,2]
[344934397,1733890271630,-500.0,0.00011098,2]
[344934398,1733890271639,-360.88284177,0.00011098,2]
[344934399,1733890271649,-500.0,0.00011098,2]
[344934400,1733890271658,-666.12,0.00011098,2]
[344934401,1733890271667,-500.0,0.00011098,2]
[344934402,1733890271676,-666.12,0.00011098,2]
[344934403,1733890271686,-500.0,0.00011098,2]
[344934404,1733890271695,-666.12,0.00011098,2]
[344934405,1733890271705,-370.77532353,0.00011098,2]
[344934406,1733890271716,-666.12,0.00011098,2]
[344934407,1733890271726,-1899.23,0.00011098,2]
[344934408,1733890271735,-1899.23,0.00011098,2]
[344934409,1733890271744,-500.0,0.00011098,2]
[344934410,1733890271753,-1899.23,0.00011098,2]
[344934411,1733890271763,-558.57492632,0.00011098,2]
[344934412,1733890271772,-812.53,0.00011098,2]
[344934413,1733890271782,-812.53,0.00011098,2]
[344934414,1733890271791,-812.53,0.00011098,2]
[344934415,1733890271800,-812.53,0.00011098,2]
[344934416,1733890271811,-812.53,0.00011098,2]
[344934417,1733890271820,-812.53,0.00011098,2]
[344934418,1733890271831,-812.53,0.00011098,2]
[344934419,1733890271840,-812.53,0.00011098,2]
[344934420,1733890271851,-812.53,0.00011098,2]
[344934421,1733890271860,-812.53,0.00011098,2]
[344934422,1733890271870,-812.53,0.00011098,2]
[344934423,1733890271879,-758.17,0.00011098,2]
[344934424,1733890271888,-812.53,0.00011098,2]
[344934425,1733890271898,-758.17,0.00011098,2]
[344934426,1733890271908,-812.53,0.00011098,2]
[344934427,1733890271918,-758.17,0.00011098,2]
[344934428,1733890271927,-812.53,0.00011098,2]
[344934429,1733890271936,-150.0,0.00011098,2]
[344934430,1733890271946,-758.17,0.00011098,2]
[344934431,1733890271955,-5595.96,0.00011098,2]
[344934432,1733890271966,-812.62,0.00011098,2]
[344934433,1733890271976,-5595.96,0.00011098,2]
[344934434,1733890271985,-150.0,0.00011098,2]
[344934435,1733890271995,-150.0,0.00011098,2]
[344934436,1733890272005,-150.0,0.00011098,2]
[344934437,1733890272014,-500.0,0.00011098,2]
[344934438,1733890272024,-500.0,0.00011098,2]
[344934439,1733890272158,-500.0,0.00011098,2]
[344934440,1733890272168,-1031.11,0.00011098,2]
[344934441,1733890272178,-1031.11,0.00011098,2]
[344934442,1733890272188,-500.0,0.00011098,2]
[344934443,1733890272198,-1031.11,0.00011098,2]
[344934444,1733890272208,-1031.11,0.00011098,2]
[344934445,1733890272219,-959.92,0.00011098,2]
[344934446,1733890272229,-959.92,0.00011098,2]
[344934447,1733890272238,-959.92,0.00011098,2]
[344934448,1733890272248,-959.92,0.00011098,2]
[344934449,1733890272258,-4260.13,0.00011098,2]
[344934450,1733890272271,-4260.13,0.00011098,2]
[344934451,1733890272280,-500.0,0.00011098,2]
[344934452,1733890272290,-501.40766058,0.00011098,2]
[344934453,1733890272299,-648.96,0.00011098,2]
[344934454,1733890272308,-648.96,0.00011098,2]
[344934455,1733890272319,-648.96,0.00011098,2]
[344934456,1733890272328,-648.96,0.00011098,2]
[344934457,1733890272338,-500.0,0.00011098,2]
[344934458,1733890272347,-500.0,0.00011098,2]
[344934459,1733890272356,-500.0,0.00011098,2]
[344934460,1733890272366,-500.0,0.00011098,2]
[344934461,1733890272376,-500.0,0.00011098,2]
[344934462,1733890272385,-3420.25458542,0.00011099,2]
[344934463,1733890272701,-313.89768991,0.00011098,2]
[344934464,1733890272712,-314.8310338,0.00011099,2]
[344934465,1733890272724,-17349.00000125,0.00011099,2]
[344934466,1733890272736,-369.04840763,0.00011099,2]
[344934467,1733890272748,-815.65697777,0.00011099,2]
[344934468,1733890272759,-300.99324349,0.00011099,2]
[344934469,1733890272771,-840.61341882,0.00011099,2]
[344934470,1733890272782,-500.0,0.00011099,2]
[344934471,1733890272958,-500.0,0.00010958,2]
[344934472,1733890272970,-547.69276727,0.00010958,2]
[344934473,1733890272980,-500.0,0.00010958,2]
[344934474,1733890272990,-500.0,0.00010993,2]
[344934475,1733890272999,-6089.60233182,0.00011099,2]
[344934476,1733890273009,-3635.66199118,0.00011099,2]
[344934477,1733890278104,-1002.48538491,0.00011099,2]
[344934478,1733890278136,-500.0,0.00010957,2]
[344934479,1733890278145,-500.0,0.00010957,2]
[344934480,1733890278154,-500.0,0.00010957,2]
[344934481,1733890278163,-19828.14720493,0.00011099,2]
[344934482,1733890278172,-871.85279707,0.00011099,2]
[344934483,1733890278184,-3005.31857413,0.00011099,2]
[344934484,1733890278193,-1988.15593905,0.00011099,2]
[344934485,1733890278212,-509.09756546,0.00010957,2]
[344934486,1733890278223,-22995.96760834,0.00011099,2]
[344934506,1733890901498,507.47,8.219e-05,2]
[344934507,1733890981264,157.97,8.044e-05,2]
[344934526,1733891380408,250.0,9.44e-05,2]
[344934530,1733891432067,-158.61,9.508e-05,2]
[344934531,1733891432077,-171.82,9.558e-05,2]
[344934532,1733891432086,-229.819985,9.733e-05,2]
[344934533,1733891432098,-1890.71021658,9.733e-05,2]
[344934534,1733891432110,-114.07979842,9.733e-05,2]
[344934535,1733891432119,-2868.25,9.733e-05,2]
[344934536,1733891432128,-158.33,9.817e-05,2]
[344934537,1733891432137,-158.33,9.866e-05,2]
[344934538,1733891432147,-250.0,9.92e-05,2]
[344934539,1733891432157,-1000.0,9.995e-05,2]
[344934540,1733891432166,-435.1,0.0001,2]
[344934541,1733891432176,-411.69,0.00010022,2]
[344934542,1733891432186,-8084.26,0.00010038,2]
[344934543,1733891432195,-23900.0,0.00010044,2]
[344934544,1733891432204,-150.0,0.00010055,2]
[344934545,1733891432214,-2677.05,0.00010055,2]
[344934546,1733891432223,-200.0,0.0001008,2]
[344934547,1733891432232,-166.72,0.00010209,2]
[344934548,1733891432242,-164.58,0.00010225,2]
[344934549,1733891432251,-1000.0,0.00010299,2]
[344934550,1733891432261,-150.0,0.00010299,2]
[344934551,1733891432270,-19566.15035293,0.000103,2]
[344934552,1733891432289,-742.36759943,0.000103,2]
[344934553,1733891432298,-170.69,0.00010345,2]
[344934554,1733891432308,-879.9153,0.00010345,2]
[344934555,1733891432317,-1990.7608,0.00010348,2]
[344934556,1733891432327,-502.0,0.00010411,2]
[344934557,1733891432336,-150.0,0.00010418,2]
[344934558,1733891432346,-15457.0,0.00010448,2]
[344934559,1733891432355,-15453.0,0.00010448,2]
[344934560,1733891432365,-15453.0,0.00010448,2]
[344934561,1733891432374,-10806.77402697,0.00010448,2]
[344934562,1733891432386,-4646.22597303,0.00010448,2]
[344934563,1733891432401,-15453.0,0.00010448,2]
[344934564,1733891432411,-15453.0,0.00010448,2]
[344934566,1733891432421,-5619.15230057,0.00010448,2]
[344934569,1733891432437,-949.94196682,0.00010448,2]
[344934571,1733891432450,-550.05803318,0.00010448,2]
[344934573,1733891432461,-5144.89644038,0.00010448,2]
[344934576,1733891432473,-3188.95125905,0.00010448,2]
[344934577,1733891432484,-15453.0,0.00010448,2]
[344934579,1733891432494,-507.47,0.00010474,2]
[344934580,1733891432504,-318.907,0.0001055,2]
[344934581,1733891432515,-2482.87105029,0.00010649,2]
[344934583,1733891432524,-72063.07401527,0.0001065,2]
[344934585,1733891432534,-731.55183054,0.00010698,2]
[344934587,1733891432544,-45883.11944141,0.0001074,2]
[344934606,1733891438047,-23462.88055859,0.0001074,2]
[344934607,1733891438057,-5000.0,0.00010891,2]
[344934608,1733891438067,-1000.0,0.00010893,2]
[344934609,1733891438077,-634.0,0.00010898,2]
[344934610,1733891438087,-3879.0,0.00010898,2]
[344934611,1733891438097,-150.0,0.00010898,2]
[344934612,1733891438107,-300.0,0.00010956,2]
[344934613,1733891438118,-300.0,0.00010956,2]
[344934614,1733891438128,-300.0,0.00010956,2]
[344934615,1733891438138,-300.0,0.00010956,2]
[344934616,1733891438147,-300.0,0.00010956,2]
[344934617,1733891438159,-300.0,0.00010956,2]
[344934618,1733891438169,-300.0,0.00010956,2]
[344934619,1733891438179,-300.0,0.00010956,2]
[344934620,1733891438188,-300.0,0.00010956,2]